bitfinex/quotes_ETHUSD_20230111
["timestamp","ask_amount","ask_price","bid_price","bid_amount"]
[1673477057852,29.60675,1354.1,1353.8,0.1442898]
[1673477057853,43.15807759,1354.1,1353.8,0.1442898]
[1673477058020,4.31580776,1354.0,1353.9,1.83292904]
[1673477058224,23.53968173,1354.0,1353.9,1.83292904]
[1673477058437,24.15968173,1354.0,1353.9,1.83292904]
[1673477059172,32.40734237,1354.0,1353.9,1.83292904]
[1673477059850,9.38864173,1354.0,1353.9,1.83292904]
[1673477060062,16.77416173,1354.0,1353.9,1.83292904]
[1673477060276,16.22016173,1354.0,1353.8,1.97721884]
[1673477060593,23.60568173,1354.0,1353.8,0.1442898]
[1673477061480,31.13268817,1353.9,1353.8,0.1442898]
[1673477061689,41.58474817,1353.9,1353.8,0.1442898]
[1673477062145,54.72426997,1353.9,1353.8,0.1442898]
[1673477062361,57.76387137,1353.9,1353.8,9.8e-06]
[1673477063806,57.76387137,1353.9,1353.6,0.03336277]
[1673477063807,72.53599137,1353.9,1353.6,2.57e-06]
[1673477064018,72.53599137,1353.9,1353.4,0.03336277]
[1673477064019,23.98466064,1353.7,1353.4,0.03336277]
[1673477064233,20.187,1353.5,1353.4,0.03336277]
[1673477064507,19.60066064,1353.5,1353.4,0.03336277]
[1673477064653,21.41786064,1353.5,1353.4,1.86686834]
[1673477065843,49.76961064,1353.5,1353.4,2.77e-06]
[1673477065998,55.52191316,1353.5,1353.4,2.77e-06]
[1673477066204,56.27341456,1353.5,1353.4,2.77e-06]
[1673477066469,44.01041456,1353.5,1353.4,2.77e-06]
[1673477066633,42.27341456,1353.5,1353.4,2.77e-06]
[1673477066842,39.1225061,1353.5,1353.4,2.77e-06]
[1673477067171,43.27817036,1353.5,1353.4,2.77e-06]
[1673477067383,57.27817036,1353.5,1353.4,2.77e-06]
[1673477067790,66.82817036,1353.5,1353.4,2.77e-06]
[1673477067996,59.01517036,1353.5,1353.4,2.77e-06]
[1673477068691,60.0837416,1353.5,1353.4,2.77e-06]
[1673477069268,59.01517036,1353.5,1353.4,2.77e-06]
[1673477069531,66.82817036,1353.5,1353.4,2.77e-06]
[1673477069726,59.01517036,1353.5,1353.4,2.77e-06]
[1673477072316,4.45,1353.3,1353.1,0.03820009]
[1673477072658,36.02244064,1353.2,1353.1,0.03820009]
[1673477072827,43.47833064,1353.2,1353.1,0.03820009]
[1673477073043,28.25355064,1353.2,1353.1,0.03820009]
[1673477073280,18.90731314,1353.2,1353.1,0.03820009]
[1673477073684,17.066,1353.2,1353.1,0.03820009]
[1673477074032,31.84578,1353.2,1353.1,0.03820009]
[1673477074352,39.23567,1353.2,1353.1,0.03820009]
[1673477074888,42.9793599,1353.2,1353.1,0.03820009]
[1673477075188,46.77702054,1353.2,1353.1,0.03820009]
[1673477075412,50.931473,1353.2,1353.1,0.03820009]
[1673477075771,46.77702054,1353.2,1353.1,0.03820009]
[1673477076191,50.931473,1353.2,1353.1,0.03820009]
[1673477076615,55.381473,1353.2,1353.1,0.03820009]
[1673477077240,65.07284151,1353.2,1353.1,9e-08]
[1673477077559,65.07284151,1353.2,1352.9,1.20553787]
[1673477077802,48.01392,1353.0,1352.9,1.20553787]
[1673477078032,51.87758064,1353.0,1352.9,1.20553787]
[1673477078202,17.86366064,1353.0,1352.9,1.20553787]
[1673477078420,0.066,1353.0,1352.9,1.20553787]
[1673477078626,7.39098,1353.0,1352.9,1.20553787]
[1673477078834,7.45698,1353.0,1352.9,1.20553787]
[1673477079383,14.84796,1353.0,1352.9,1.20553787]
[1673477079634,17.84796,1353.0,1352.9,1.20553787]
[1673477079854,37.85547964,1353.0,1352.9,1.20553787]
[1673477080374,42.00861422,1353.0,1352.9,1.20553787]
[1673477080529,42.7614335,1353.0,1352.9,1.20553787]
[1673477080740,38.60698104,1353.0,1352.9,1.20553787]
[1673477080951,37.85547964,1353.0,1352.9,1.20553787]
[1673477081207,38.60698104,1353.0,1352.9,1.20553787]
[1673477081394,42.7614335,1353.0,1352.9,1.20553787]
[1673477082055,38.60698104,1353.0,1352.9,1.20553787]
[1673477082248,37.85547964,1353.0,1352.9,1.20553787]
[1673477084010,33.48660064,1353.0,1352.9,1.20553787]
[1673477084251,3.066,1353.0,1352.9,1.20553787]
[1673477084583,25.17294,1353.0,1352.9,1.20553787]
[1673477084782,25.23894,1353.0,1352.9,1.20553787]
[1673477086314,39.23894,1353.0,1352.9,1.20553787]
[1673477086515,25.73894,1353.0,1352.9,1.20553787]
[1673477086730,29.53660064,1353.0,1352.9,1.20553787]
[1673477086969,43.53660064,1353.0,1352.9,1.20553787]
[1673477087204,29.53660064,1353.0,1352.9,1.20553787]
[1673477087718,33.6743487,1353.0,1352.9,1.20553787]
[1673477087934,47.6743487,1353.0,1352.9,1.20553787]
[1673477088940,43.53660064,1353.0,1352.9,1.20553787]
[1673477089587,47.98660064,1353.0,1352.9,1.20553787]
[1673477091271,38.63832521,1353.0,1352.9,1.20553787]
[1673477093174,51.02851419,1353.0,1352.9,1.20553787]
[1673477093347,52.76551419,1353.0,1352.9,1.20553787]
[1673477093557,25.38982661,1353.0,1352.9,1.20553787]
[1673477093769,24.63832521,1353.0,1352.9,1.20553787]
[1673477094221,28.43598585,1353.0,1352.9,1.20553787]
[1673477094411,27.93598585,1353.0,1352.9,0.70553787]
[1673477094679,32.38598585,1353.0,1352.9,0.70553787]
[1673477094887,37.76366743,1353.0,1352.9,0.70553787]
[1673477095342,22.98170743,1353.0,1352.9,0.70553787]
[1673477095517,1.96538521,1353.0,1352.9,0.70553787]
[1673477095731,19.823,1353.1,1353.0,0.00528387]
[1673477095956,31.01122064,1353.1,1353.0,0.00528387]
[1673477096165,22.23729,1353.1,1353.0,0.00528387]
[1673477097186,25.23729,1353.1,1353.0,0.00528387]
[1673477097399,38.59267864,1353.1,1353.0,0.00528387]
[1673477101332,33.48495064,1353.1,1353.0,0.00528387]
[1673477102550,26.09452064,1353.1,1353.0,0.00528387]
[1673477102800,33.48495064,1353.1,1353.0,0.00528387]
[1673477103187,14.90643,1353.1,1353.0,0.00528387]
[1673477103410,22.29686,1353.1,1353.0,0.00528387]
[1673477103958,17.84686,1353.1,1353.0,0.00528387]
[1673477104280,25.23729,1353.1,1353.0,0.00528387]
[1673477104497,6.86366064,1353.1,1353.0,0.00528387]
[1673477104796,21.64452064,1353.1,1353.0,0.00528387]
[1673477105019,6.86366064,1353.1,1353.0,0.00528387]
[1673477105187,10.45643,1353.1,1353.0,0.00528387]
[1673477105397,25.23729,1353.1,1353.0,0.00528387]
[1673477108028,29.03495064,1353.1,1353.0,0.00528387]
[1673477108243,43.03495064,1353.1,1353.0,0.00528387]
[1673477108456,47.48495064,1353.1,1353.0,0.00528387]
[1673477109504,24.45643,1353.1,1353.0,0.00528387]
[1673477109730,31.84686,1353.1,1353.0,0.00528387]
[1673477109981,17.84686,1353.1,1353.0,0.00528387]
[1673477110780,10.45643,1353.1,1353.0,0.00528387]
[1673477112388,17.84686,1353.1,1353.0,0.00528387]
[1673477112594,10.45643,1353.1,1353.0,0.00528387]
[1673477115174,3.066,1353.1,1353.0,1.22628387]
[1673477115386,3.0,1353.1,1353.0,1.41946604]
[1673477115624,3.0,1353.1,1353.0,8.81030604]
[1673477115836,1.04365949,1353.1,1353.0,8.87630604]
[1673477116042,14.84514,1353.3,1353.0,8.87630604]
[1673477116376,22.23483,1353.3,1353.0,2.62394041]
[1673477116540,22.23483,1353.3,1353.0,2.55794041]
[1673477116752,22.23483,1353.3,1353.1,0.221]
[1673477117325,0.066,1353.3,1353.1,15.27960404]
[1673477117644,10.066,1353.4,1353.1,22.73603404]
[1673477118221,0.066,1353.4,1353.1,16.64660404]
[1673477118433,7.38881,1353.4,1353.2,1.6646604]
[1673477118690,7.45481,1353.4,1353.2,1.6646604]
[1673477118861,0.066,1353.4,1353.2,1.6646604]
[1673477119065,22.23161,1353.5,1353.2,1.6646604]
[1673477119275,14.84301,1353.5,1353.2,9.34191247]
[1673477119600,14.84301,1353.5,1353.3,0.93419125]
[1673477119601,7.45449,1353.5,1353.3,0.93419125]
[1673477120337,7.45449,1353.5,1353.3,1.22164332]
[1673477120548,14.84309,1353.5,1353.3,1.22164332]
[1673477120758,0.066,1353.5,1353.3,8.61093332]
[1673477121001,17.63249996,1353.7,1353.4,0.86109333]
[1673477121205,25.02001996,1353.7,1353.4,0.86109333]
[1673477121426,25.02001996,1353.7,1353.4,1.1485454]
[1673477121797,25.02001996,1353.7,1353.4,15.9255454]
[1673477121798,10.24510996,1353.7,1353.4,15.9255454]
[1673477122003,17.63241996,1353.7,1353.4,8.6029054]
[1673477122335,10.24510996,1353.7,1353.5,2.16329054]
[1673477122528,3.0,1353.6,1353.5,2.16329054]
[1673477122743,0.24510996,1353.7,1353.5,1.303]
[1673477123056,22.34066996,1353.7,1353.5,1.303]
[1673477123266,22.40666996,1353.7,1353.5,1.59045207]
[1673477123736,0.24510996,1353.7,1353.5,1.59045207]
[1673477123933,0.17910996,1353.7,1353.5,8.97868207]
[1673477124107,0.17910996,1353.7,1353.5,4.25573261]
[1673477124318,0.17910996,1353.7,1353.5,4.18973261]
[1673477124527,0.17910996,1353.7,1353.5,26.35429261]
[1673477124834,0.17910996,1353.7,1353.5,11.64379261]
[1673477124983,0.17910996,1353.7,1353.5,11.64398261]
[1673477125834,0.17910996,1353.7,1353.5,4.25573261]
[1673477126150,0.17910996,1353.7,1353.5,4.18973261]
[1673477126363,7.56626996,1353.7,1353.5,4.18973261]
[1673477126544,7.63226996,1353.7,1353.5,1.59045207]
[1673477126741,15.01942996,1353.7,1353.5,1.59045207]
[1673477127517,7.63226996,1353.7,1353.5,1.59045207]
[1673477128217,7.63226996,1353.7,1353.6,1.31]
[1673477128218,0.24510996,1353.7,1353.6,1.31]
[1673477128414,0.17910996,1353.7,1353.6,1.59745207]
[1673477128620,0.17910996,1353.7,1353.6,1.75719728]
[1673477129479,22.18457996,1353.8,1353.6,1.75719728]
[1673477130131,14.79763996,1353.8,1353.6,1.75719728]
[1673477130565,0.066,1353.8,1353.7,1.31]
[1673477130726,3.0,1353.9,1353.7,16.08432]
[1673477130936,10.38612,1353.9,1353.7,3.90551173]
[1673477131143,3.066,1353.9,1353.7,11.22648173]
[1673477131492,3.0,1353.9,1353.7,4.1929638]
[1673477131709,3.0,1353.9,1353.7,4.1269638]
[1673477131882,3.0,1353.9,1353.7,1.59745207]
[1673477132097,3.0,1353.9,1353.7,23.75825207]
[1673477132391,3.0,1353.9,1353.7,23.82425207]
[1673477132665,3.0,1353.9,1353.8,0.38335247]
[1673477133987,7.4516,1354.0,1353.8,1.69335247]
[1673477134213,14.83747,1354.0,1353.8,1.89803292]
[1673477134613,22.22335,1354.0,1353.8,1.89803292]
[1673477135617,7.45159,1354.0,1353.8,1.89803292]
[1673477136187,0.066,1354.0,1353.8,1.89803292]
[1673477136398,3.0,1354.1,1353.9,16.08212]
[1673477136621,3.066,1354.2,1354.0,1.31]
[1673477136867,3.0,1354.2,1354.0,1.31]
[1673477138080,0.066,1354.3,1354.1,1.31]
[1673477138338,7.39051,1354.4,1354.1,1.31]
[1673477138339,7.45649,1354.4,1354.1,1.31]
[1673477138553,0.073,1354.4,1354.2,1.301]
[1673477138719,3.007,1354.4,1354.2,1.301]
[1673477139655,0.007,1354.4,1354.2,1.301]
[1673477139866,0.007,1354.4,1354.2,4.20746006]
[1673477140139,0.007,1354.4,1354.2,18.97627006]
[1673477140341,14.76776,1354.3,1354.2,4.27346006]
[1673477140526,14.76776,1354.3,1354.2,1.301]
[1673477140527,22.21764,1354.3,1354.2,1.301]
[1673477140716,11.24754064,1354.3,1354.2,1.301]
[1673477140928,21.63142064,1354.3,1353.9,1.365]
[1673477141254,21.63142064,1354.3,1353.9,1.299]
[1673477141255,3.0,1354.2,1353.9,1.299]
[1673477141461,3.0,1354.2,1354.0,1.31]
[1673477141676,0.066,1354.3,1354.0,1.31]
[1673477141677,3.066,1354.3,1354.0,1.31]
[1673477141889,3.0,1354.3,1354.0,1.31]
[1673477143381,10.38404,1354.3,1354.0,1.31]
[1673477143593,10.45004,1354.3,1354.0,1.31]
[1673477143912,3.066,1354.3,1354.1,1.31]
[1673477144105,10.38426,1354.3,1354.1,1.31]
[1673477144281,10.45026,1354.3,1354.1,1.31]
[1673477144647,3.066,1354.3,1354.1,1.31]
[1673477144820,0.073,1354.4,1354.2,3.857]
[1673477145029,0.007,1354.4,1354.3,1.31]
[1673477145225,0.007,1354.4,1354.3,5.10766064]
[1673477145434,14.82926,1354.8,1354.3,6.71266064]
[1673477145697,14.82926,1354.8,1354.5,1.31]
[1673477146274,0.066,1354.8,1354.6,1.31]
[1673477146496,7.44686,1354.9,1354.6,1.31]
[1673477147997,0.066,1354.9,1354.7,5.10766064]
[1673477148178,0.066,1354.9,1354.8,1.80976606]
[1673477148179,0.002,1354.9,1354.8,1.80976606]
[1673477148391,7.38061,1354.9,1354.8,1.80976606]
[1673477148689,7.38061,1354.9,1354.7,1.367]
[1673477148690,22.20783,1354.9,1354.7,1.367]
[1673477148927,22.20783,1354.9,1354.7,1.301]
[1673477149335,0.066,1354.9,1354.7,27.24324064]
[1673477149543,18.00562,1355.2,1354.8,1.31]
[1673477149755,7.37979,1355.1,1354.8,1.82736606]
[1673477150003,0.066,1355.1,1354.8,1.31]
[1673477150202,22.139,1355.1,1354.8,1.31]
[1673477150421,22.205,1355.1,1354.7,1.31]
[1673477150628,0.066,1355.1,1354.8,7.38103]
[1673477150792,3.0,1355.1,1354.8,7.44703]
[1673477151001,3.0,1355.1,1354.8,9.060869]
[1673477151211,3.0,1355.1,1354.8,16.442029]
[1673477151424,3.0,1355.1,1354.8,17.746029]
[1673477152059,3.6266,1355.2,1354.9,16.05966]
[1673477152308,3.007,1355.2,1354.9,19.92336064]
[1673477152628,0.007,1355.2,1354.9,14.8268706]
[1673477152846,0.007,1355.2,1355.0,1.305]
[1673477153325,0.007,1355.2,1355.0,5.10266064]
[1673477153534,0.007,1355.2,1355.1,1.31]
[1673477153962,0.007,1355.2,1355.0,16.0149]
[1673477154192,0.007,1355.2,1355.0,0.066]
[1673477154404,7.38598,1355.2,1354.9,1.31]
[1673477154575,7.45198,1355.2,1354.9,1.31]
[1673477154787,14.83096,1355.2,1354.8,0.6197]
[1673477155056,14.83096,1355.2,1354.7,16.5737]
[1673477155206,17.051907,1355.2,1354.7,26.04766064]
[1673477155963,14.83096,1355.2,1354.7,26.04766064]
[1673477156365,23.07862064,1355.2,1354.7,1.9298]
[1673477156621,23.07862064,1355.2,1354.6,47.2901]
[1673477157153,30.45760064,1355.2,1354.7,1.31]
[1673477157475,0.073,1355.2,1354.7,1.31]
[1673477157645,0.007,1355.2,1354.7,27.25270064]
[1673477157854,0.007,1355.2,1354.8,4.03527006]
[1673477158064,0.007,1355.2,1354.9,14.76113]
[1673477158257,0.007,1355.2,1354.9,7.44652]
[1673477158720,0.007,1355.2,1355.0,3.79766064]
[1673477159304,3.007,1355.2,1355.0,3.79766064]
[1673477159889,22.14444,1355.2,1354.9,0.066]
[1673477160199,22.21044,1355.2,1354.8,1.8637]
[1673477160412,25.169337,1355.2,1354.8,1.31]
[1673477160584,22.21044,1355.2,1354.8,1.31]
[1673477160782,14.83121,1355.2,1354.8,1.31]
[1673477160988,0.073,1355.2,1354.9,3.79766064]
[1673477161203,0.007,1355.2,1354.9,11.17822064]
[1673477161458,0.007,1355.2,1354.9,5.8571917]
[1673477161983,0.007,1355.2,1354.9,14.5477017]
[1673477162193,14.76496,1355.2,1354.9,7.1671917]
[1673477162418,7.45198,1355.2,1354.9,5.17366064]
[1673477163306,14.83096,1355.2,1354.9,5.17366064]
[1673477163774,7.45198,1355.2,1354.9,12.55425064]
[1673477164294,0.073,1355.2,1354.9,27.31547064]
[1673477164516,0.007,1355.2,1355.0,2.73154706]
[1673477164817,22.14395,1355.2,1354.9,5.17366064]
[1673477164979,22.20995,1355.2,1354.9,5.17366064]
[1673477165867,22.20995,1355.2,1354.9,0.066]
[1673477166081,22.20995,1355.2,1354.8,0.00234475]
[1673477166312,14.76014,1355.0,1354.8,0.00234475]
[1673477166467,14.82614,1355.0,1354.8,0.00234475]
[1673477166658,22.20621,1355.0,1354.7,1.305]
[1673477166868,22.20621,1355.0,1354.6,16.0363]
[1673477167128,22.20621,1355.0,1354.6,1.376]
[1673477167324,22.20621,1355.0,1354.6,1.80321453]
[1673477171022,22.20621,1355.0,1354.5,21.99124527]
[1673477171230,26.00387064,1355.0,1354.5,21.99124527]
[1673477171543,26.00387064,1355.0,1354.5,21.43744527]
[1673477171723,26.00387064,1355.0,1354.5,18.43744527]
[1673477171928,3.79766064,1354.9,1354.5,1.37234527]
[1673477172179,0.066,1355.0,1354.5,8.69513527]
[1673477172438,17.76032,1355.0,1354.6,0.5538]
[1673477172558,17.82632,1355.0,1354.5,24.08051527]
[1673477173300,3.066,1355.0,1354.6,5.33166064]
[1673477173647,17.76022,1355.0,1354.7,4.3308267]
[1673477173883,18.37982,1355.0,1354.6,1.37]
[1673477174034,17.82622,1355.0,1354.5,18.756]
[1673477174247,21.62388064,1355.0,1354.5,17.446]
[1673477174561,10.99967,1355.0,1354.5,18.1932]
[1673477174792,10.99967,1355.0,1354.6,3.12932]
[1673477175104,10.99972,1355.0,1354.6,6.92698064]
[1673477175283,25.20623,1355.0,1354.6,1.376]
[1673477175492,25.75983,1355.0,1354.6,1.31]
[1673477176350,25.75983,1355.0,1354.5,18.1912]
[1673477177385,10.99967,1355.0,1354.5,1.36734527]
[1673477177668,10.9997,1355.0,1354.6,7.51890453]
[1673477177964,0.066,1355.0,1354.6,27.45706517]
[1673477178179,14.76028,1355.0,1354.7,0.00234492]
[1673477178488,14.82628,1355.0,1354.7,1.27183593]
[1673477178646,22.20635,1355.0,1354.7,0.00234492]
[1673477179534,14.82621,1355.0,1354.7,0.00234492]
[1673477179745,0.066,1355.0,1354.7,5.11000556]
[1673477179958,0.066,1355.1,1354.7,12.55761556]
[1673477180186,3.0,1355.1,1354.8,1.25576156]
[1673477180328,10.37973,1355.1,1354.8,1.25576156]
[1673477180532,10.44573,1355.1,1354.8,1.60317827]
[1673477180963,25.20477,1355.1,1354.8,1.60317827]
[1673477181334,25.20477,1355.1,1354.8,0.34741671]
[1673477182845,25.75837,1355.1,1354.8,0.34741671]
[1673477183072,18.37864,1355.1,1354.8,0.34741671]
[1673477183391,3.6196,1355.1,1354.8,4.14507735]
[1673477183591,3.073,1355.2,1354.9,0.41450774]
[1673477183803,3.073,1355.2,1354.8,12.83590735]
[1673477183804,18.31912,1355.2,1354.8,1.72341671]
[1673477184041,0.5536,1355.1,1354.8,0.34741671]
[1673477184230,22.14021,1355.0,1354.8,0.34741671]
[1673477184440,22.20621,1355.0,1354.8,0.34741671]
[1673477185378,22.10621,1355.0,1354.8,0.34741671]
[1673477188851,7.34607,1355.0,1354.8,0.34741671]
[1673477189050,22.10621,1355.0,1354.8,0.34741671]
[1673477189264,22.10621,1355.0,1354.8,5.4574221]
[1673477189265,0.066,1355.0,1354.8,5.4574221]
[1673477189474,14.82557,1355.1,1354.9,0.54574221]
[1673477189802,22.2016334,1355.1,1354.9,0.54574221]
[1673477190366,22.2016334,1355.1,1354.8,0.41576146]
[1673477190529,22.7552334,1355.1,1354.8,0.34976146]
[1673477191606,22.7552334,1355.1,1354.8,0.34741671]
[1673477194090,7.9952734,1355.1,1354.8,0.34741671]
[1673477194307,15.3752734,1355.1,1354.8,0.34741671]
[1673477194630,22.7552734,1355.1,1354.8,0.34741671]
[1673477195265,22.7552734,1355.1,1354.8,0.51536235]
[1673477196225,22.7552734,1355.1,1354.8,0.34741671]
[1673477199136,30.1352734,1355.1,1354.8,0.34741671]
[1673477199346,33.93293404,1355.1,1354.8,0.34741671]
[1673477200304,30.1352734,1355.1,1354.8,0.34741671]
[1673477206708,3.0,1355.0,1354.8,0.34741671]
[1673477207061,29.52244,1354.9,1354.8,0.34741671]
[1673477207273,29.58844,1354.9,1354.8,0.34741671]
[1673477209333,22.20783,1354.9,1354.8,0.34741671]
[1673477210101,7.44661,1354.9,1354.8,0.34741671]
[1673477211361,22.20783,1354.9,1354.8,0.34741671]
[1673477211903,22.20783,1354.9,1354.8,0.29741671]
[1673477213554,25.166651,1354.9,1354.8,0.29741671]
[1673477214630,22.20783,1354.9,1354.8,0.29741671]
[1673477218522,22.20783,1354.9,1354.5,1.375]
[1673477218715,25.20783,1354.9,1354.5,1.309]
[1673477218890,25.20783,1354.9,1354.4,9.161]
[1673477219102,29.94563763,1354.9,1354.4,9.161]
[1673477219362,29.52724,1354.7,1354.4,9.161]
[1673477219517,29.59324,1354.7,1354.4,1.376]
[1673477219736,29.59324,1354.7,1354.4,1.31]
[1673477219944,29.59324,1354.7,1354.3,19.2505]
[1673477220153,29.59324,1354.7,1354.3,18.6966]
[1673477220364,36.35022464,1354.7,1354.3,0.066]
[1673477220568,36.35022464,1354.7,1354.1,8.33914341]
[1673477220569,36.35022464,1354.7,1354.1,10.26914341]
[1673477220850,40.36722604,1354.7,1354.1,28.89974341]
[1673477220993,40.92102604,1354.7,1354.1,28.89974341]
[1673477224571,36.90402464,1354.7,1354.1,28.89974341]
[1673477224785,36.90402464,1354.7,1354.2,2.88997434]
[1673477225008,40.92320586,1354.7,1354.2,2.88997434]
[1673477225312,40.92320586,1354.7,1354.1,28.89974341]
[1673477225521,40.92320586,1354.7,1354.1,27.58974341]
[1673477225756,29.53228,1354.5,1354.1,27.58974341]
[1673477225937,29.59828,1354.5,1354.1,18.73544341]
[1673477226141,3.79766064,1354.4,1354.1,0.10484341]
[1673477226352,22.15164,1354.3,1354.1,0.03884341]
[1673477226638,0.066,1354.3,1354.1,0.03884341]
[1673477226937,22.15231,1354.3,1354.1,0.03884341]
[1673477227142,22.21831,1354.3,1354.1,0.03884341]
[1673477227313,22.21815,1354.3,1354.1,0.17372775]
[1673477227899,22.21815,1354.3,1354.1,0.03884341]
[1673477231680,30.46581064,1354.3,1354.1,0.03884341]
[1673477233113,8.24766064,1354.2,1354.1,0.03884341]
[1673477233338,30.46695064,1354.2,1354.1,0.03884341]
[1673477235936,33.46695064,1354.2,1354.1,0.03884341]
[1673477236146,38.3458717,1354.2,1354.1,0.03884341]
[1673477241129,59.7303017,1354.2,1354.1,3.41e-06]
[1673477241343,60.2843017,1354.2,1354.1,3.41e-06]
[1673477241720,59.7303017,1354.2,1354.1,3.41e-06]
[1673477242184,45.7303017,1354.2,1354.1,3.41e-06]
[1673477242713,30.09821106,1354.2,1354.1,3.41e-06]
[1673477243087,25.21929,1354.2,1354.1,3.41e-06]
[1673477244594,7.45043,1354.2,1354.1,3.41e-06]
[1673477244758,0.066,1354.2,1354.1,3.41e-06]
[1673477244973,7.38406,1354.3,1354.1,3.41e-06]
[1673477245349,14.83443,1354.3,1354.1,3.41e-06]
[1673477245502,22.2188,1354.3,1354.1,3.41e-06]
[1673477247133,25.932448,1354.3,1354.1,3.41e-06]
[1673477248050,33.316818,1354.3,1354.1,3.41e-06]
[1673477252674,22.24766064,1354.2,1354.1,3.41e-06]
[1673477253019,52.03930005,1354.2,1354.1,3.41e-06]
[1673477254248,48.02095064,1354.2,1354.1,3.41e-06]
[1673477254459,53.41910998,1354.2,1354.1,3.41e-06]
[1673477255389,46.03467998,1354.2,1354.1,3.41e-06]
[1673477255602,26.81581998,1354.2,1354.1,3.41e-06]
[1673477256071,41.58467998,1354.2,1354.1,3.41e-06]
[1673477256242,34.20024998,1354.2,1354.1,3.41e-06]
[1673477256453,38.65024998,1354.2,1354.1,3.41e-06]
[1673477256670,53.41910998,1354.2,1354.1,3.41e-06]
[1673477257049,60.24953998,1354.2,1353.9,3.37e-06]
[1673477257193,8.341911,1354.1,1353.9,3.37e-06]
[1673477257387,45.17526064,1354.0,1353.9,3.37e-06]
[1673477257600,45.24126064,1354.0,1353.9,3.37e-06]
[1673477258580,37.85574064,1354.0,1353.9,3.37e-06]
[1673477258791,39.18680164,1354.0,1353.9,3.37e-06]
[1673477260012,27.35128164,1354.0,1353.9,3.37e-06]
[1673477260227,12.58024164,1354.0,1353.9,3.37e-06]
[1673477260473,27.35128164,1354.0,1353.9,3.37e-06]
[1673477260682,31.80128164,1354.0,1353.9,3.37e-06]
[1673477261705,27.35128164,1354.0,1353.9,3.37e-06]
[1673477262121,5.19472164,1354.0,1353.9,3.37e-06]
[1673477262354,27.35128164,1354.0,1353.9,3.37e-06]
[1673477265372,34.73680164,1354.0,1353.9,3.37e-06]
[1673477266564,37.73680164,1354.0,1353.9,3.37e-06]
[1673477266774,42.18680164,1354.0,1353.9,3.37e-06]
[1673477274746,54.02098842,1354.0,1353.9,3.37e-06]
[1673477274957,54.25098842,1354.0,1353.9,3.37e-06]
[1673477275214,42.41680164,1354.0,1353.9,3.37e-06]
[1673477275405,42.18680164,1354.0,1353.9,3.37e-06]
[1673477279276,34.80128164,1354.0,1353.9,3.37e-06]
[1673477280329,33.47022064,1354.0,1353.9,3.37e-06]
[1673477280764,0.0035222,1353.9,1353.7,0.2904057]
[1673477281110,22.15983,1353.8,1353.7,0.2904057]
[1673477281332,22.22583,1353.8,1353.7,0.2904057]
[1673477282232,21.12591582,1353.8,1353.7,0.2904057]
[1673477286584,0.066,1353.8,1353.7,0.2904057]
[1673477286735,7.38661,1353.8,1353.7,0.2904057]
[1673477286939,14.83922,1353.8,1353.7,0.2904057]
[1673477287223,22.22583,1353.8,1353.7,0.28745207]
[1673477289280,22.17583,1353.8,1353.7,0.28745207]
[1673477291203,25.13241022,1353.8,1353.7,2.07e-06]
[1673477291727,14.77432,1353.7,1353.2,33.71365107]
[1673477291883,22.22748,1353.7,1353.5,0.052]
[1673477292089,22.22748,1353.7,1353.3,1.301]
[1673477292338,34.35781209,1353.7,1353.3,1.301]
[1673477293508,22.22748,1353.7,1353.3,1.301]
[1673477293836,22.22748,1353.7,1353.2,50.77441475]
[1673477294138,22.22748,1353.7,1353.3,1.83360321]
[1673477295293,22.22748,1353.7,1353.3,9.22282321]
[1673477295504,22.22748,1353.7,1353.3,7.45522]
[1673477295726,22.22748,1353.7,1353.3,11.67948148]
[1673477296616,22.22748,1353.7,1353.3,4.29026148]
[1673477296825,22.22748,1353.7,1353.3,4.22426148]
[1673477301703,22.78168,1353.7,1353.4,1.83345952]
[1673477305505,0.066,1353.7,1353.6,22.1631]
[1673477305709,0.066,1353.7,1353.6,0.002]
[1673477305710,22.2256,1353.7,1353.6,0.002]
[1673477305855,22.2276,1353.7,1353.5,0.00332275]
[1673477306061,22.2276,1353.7,1353.4,1.83336223]
[1673477306326,22.2276,1353.7,1353.4,1.10622061]
[1673477306513,22.2276,1353.7,1353.4,2.93960484]
[1673477307339,22.2276,1353.7,1353.3,11.11013991]
[1673477307542,22.2276,1353.7,1353.4,1.83341637]
[1673477308148,25.189059,1353.7,1353.4,1.83341637]
[1673477308425,47.130539,1353.7,1353.3,1.3816113]
[1673477308654,47.130539,1353.7,1353.3,1.3156113]
[1673477309644,39.743259,1353.7,1353.3,16.0941413]
[1673477309852,39.743259,1353.7,1353.3,18.91032918]
[1673477310115,39.743259,1353.7,1353.3,23.76082157]
[1673477310274,39.743259,1353.7,1353.3,24.86704218]
[1673477310804,39.743259,1353.7,1353.4,1.8334905]
[1673477310805,0.6202,1353.7,1353.4,1.8334905]
[1673477311047,8.1802,1353.8,1353.4,1.8334905]
[1673477311048,8.2462,1353.8,1353.5,7.38825]
[1673477311262,8.2462,1353.8,1353.5,7.45425]
[1673477311263,7.45303,1353.8,1353.5,7.45425]
[1673477311451,0.066,1353.8,1353.5,14.8425]
[1673477311814,36.7827622,1353.9,1353.5,17.58161685]
[1673477311984,22.0099122,1353.9,1353.5,24.96986685]
[1673477312197,22.0099122,1353.9,1353.5,26.26886685]
[1673477312198,14.6236222,1353.9,1353.5,26.26886685]
[1673477312409,0.0695222,1353.9,1353.6,1.83319112]
[1673477312622,0.0695222,1353.9,1353.5,31.73448746]
[1673477312623,0.0035222,1353.9,1353.5,31.73448746]
[1673477312795,0.0035222,1353.9,1353.6,3.17344875]
[1673477313006,7.3896622,1353.9,1353.6,3.17344875]
[1673477313262,7.4556622,1353.9,1353.6,10.56107875]
[1673477313478,7.4556622,1353.9,1353.6,10.62707875]
[1673477313739,14.8418022,1353.9,1353.6,3.23944875]
[1673477313862,0.0695222,1353.9,1353.6,3.17344875]
[1673477314080,0.0035222,1353.9,1353.6,10.56096875]
[1673477314302,0.0035222,1353.9,1353.7,1.05609688]
[1673477314642,14.7756822,1353.9,1353.7,1.05609688]
[1673477314855,14.8416822,1353.9,1353.6,4.88809213]
[1673477315164,14.8416822,1353.9,1353.6,4.82209213]
[1673477315165,22.2277622,1353.9,1353.6,4.82209213]
[1673477315789,22.2277622,1353.9,1353.6,0.00664338]
[1673477316177,43.6138422,1353.9,1353.6,0.00664338]